fUST/lending_fUST_20240621
["ID","MTS","AMOUNT","RATE_DAILY","PERIOD"]
[329998381,1718909444181,-500.0,0.00055068,120]
[329998382,1718909444191,-500.0,0.00055068,120]
[329998383,1718909444200,-500.0,0.00055068,120]
[329998384,1718909444209,-500.0,0.00055068,120]
[329998385,1718909444219,-500.0,0.00055068,120]
[329998386,1718909444229,-500.0,0.00055068,120]
[329998387,1718909444239,-500.0,0.00055068,20]
[329998388,1718909444248,-500.0,0.00055068,120]
[329998389,1718909444258,-500.0,0.00055068,120]
[329998390,1718909444268,-506.39539619,0.00055068,120]
[329998391,1718909444278,-500.0,0.00055068,120]
[329998392,1718909444290,-500.0,0.00055068,2]
[329998393,1718909444300,-500.0,0.00055068,120]
[329998394,1718909444309,-500.0,0.00055068,120]
[329998396,1718909444318,-500.0,0.00055068,120]
[329998398,1718909444328,-500.0,0.00055068,120]
[329998401,1718909444337,-613.4933,0.00055068,120]
[329998403,1718909444346,-500.0,0.00055068,120]
[329998405,1718909444356,-500.0,0.00055068,120]
[329998406,1718909444365,-500.0,0.00055068,2]
[329998407,1718909444374,-500.0,0.00055068,120]
[329998408,1718909444384,-479.48069503,0.00055068,120]
[329998409,1718909444396,-20.51930497,0.00055068,120]
[329998410,1718909444406,-500.0,0.00055068,120]
[329998411,1718909444416,-500.0,0.00055068,120]
[329998412,1718909444426,-268.66406062,0.00055068,120]
[329998413,1718909444436,-500.0,0.00055068,120]
[329998414,1718909444446,-506.69556661,0.00055068,120]
[329998415,1718909444456,-503.76619801,0.00055068,120]
[329998416,1718909444465,-500.0,0.00055068,120]
[329998417,1718909444476,-500.0,0.00055068,120]
[329998418,1718909444486,-500.0,0.00055068,120]
[329998419,1718909444496,-500.0,0.00055068,120]
[329998420,1718909444505,-500.0,0.00055068,120]
[329998421,1718909444515,-500.0,0.00055068,120]
[329998422,1718909444525,-500.0,0.00055068,120]
[329998423,1718909444534,-500.0,0.00055068,120]
[329998424,1718909444545,-500.0,0.00055068,120]
[329998425,1718909444555,-500.0,0.00055068,120]
[329998426,1718909444565,-500.0,0.00055068,120]
[329998427,1718909444575,-500.0,0.00055068,120]
[329998428,1718909444584,-604.03,0.00055068,120]
[329998429,1718909444594,-1220.61,0.00055068,120]
[329998430,1718909444604,-500.0,0.00055068,120]
[329998431,1718909444613,-500.0,0.00055068,120]
[329998432,1718909444623,-500.0,0.00055068,120]
[329998433,1718909444633,-502.4238475,0.00055068,120]
[329998434,1718909444642,-500.0,0.00055068,120]
[329998435,1718909444652,-448.83677097,0.00055068,120]
[329998436,1718909444665,-51.16322903,0.00055068,120]
[329998437,1718909444675,-500.0,0.00055068,120]
[329998438,1718909444684,-5.23634698,0.00055068,120]
[329998439,1718909444695,-494.76365302,0.00055068,120]
[329998440,1718909444704,-258.07860941,0.00055068,120]
[329998441,1718909444720,-241.92139059,0.00055068,120]
[329998442,1718909444730,-500.0,0.00055068,120]
[329998443,1718909444740,-500.0,0.00055068,120]
[329998444,1718909444750,-500.0,0.00055068,120]
[329998445,1718909444760,-584.84056779,0.00055068,120]
[329998446,1718909444770,-1421.6,0.00055068,120]
[329998447,1718909444780,-500.0,0.00055068,120]
[329998448,1718909444793,-500.0,0.00055068,120]
[329998449,1718909444803,-500.0,0.00055068,120]
[329998450,1718909444812,-307.1616912,0.00055068,120]
[329998451,1718909444823,-500.0,0.00055068,120]
[329998452,1718909444832,-500.0,0.00055068,120]
[329998453,1718909444842,-1321.09,0.00055068,120]
[329998454,1718909444852,-500.0,0.00055068,120]
[329998455,1718909444862,-500.0,0.00055068,120]
[329998456,1718909444871,-500.0,0.00055068,120]
[329998457,1718909444881,-659.32,0.00055068,120]
[329998458,1718909444891,-500.0,0.00055068,120]
[329998459,1718909444900,-500.0,0.00055068,120]
[329998460,1718909444909,-1.0343527,0.00055068,120]
[329998461,1718909444931,-217.63458061,0.00054794,120]
[329998462,1718909444940,-498.9656473,0.00055068,120]
[329998463,1718909444949,-500.0,0.00055068,120]
[329998464,1718909444959,-500.0,0.00055068,120]
[329998465,1718909444968,-788.39,0.00055068,120]
[329998466,1718909444978,-500.0,0.00055068,120]
[329998467,1718909444987,-867.7,0.00055068,120]
[329998468,1718909444997,-500.0,0.00055068,120]
[329998469,1718909445007,-500.0,0.00055068,120]
[329998470,1718909445016,-500.0,0.00055068,120]
[329998471,1718909445026,-500.0,0.00055068,120]
[329998472,1718909445035,-500.0,0.00055068,7]
[329998473,1718909445045,-500.0,0.00055068,120]
[329998474,1718909445055,-500.0,0.00055068,120]
[329998475,1718909445064,-500.0,0.00055068,120]
[329998476,1718909445073,-500.0,0.00055068,120]
[329998477,1718909445082,-500.0,0.00055068,120]
[329998478,1718909445091,-1000.0,0.00055068,120]
[329998479,1718909445100,-500.0,0.00055068,120]
[329998480,1718909445109,-1403.27,0.00055068,120]
[329998481,1718909445118,-524.94,0.00055068,120]
[329998482,1718909445127,-531.11809611,0.00055068,120]
[329998483,1718909445136,-500.0,0.00055068,120]
[329998484,1718909445145,-500.0,0.00055068,120]
[329998485,1718909445154,-3180.57,0.00055068,120]
[329998486,1718909445163,-500.0,0.00055068,120]
[329998487,1718909445171,-500.0,0.00055068,120]
[329998488,1718909445180,-467.05533065,0.00055068,120]
[329998489,1718909445291,-32.94466935,0.00055068,120]
[329998490,1718909445301,-500.0,0.00055068,120]
[329998491,1718909445311,-500.0,0.00055068,120]
[329998492,1718909445320,-500.0,0.00055068,120]
[329998493,1718909445330,-500.0,0.00055068,120]
[329998494,1718909445340,-583.41322618,0.00055068,120]
[329998495,1718909445351,-6313.73,0.00055068,120]
[329998496,1718909445361,-500.0,0.00055068,120]
[329998497,1718909445371,-500.0,0.00055068,120]
[329998498,1718909445380,-500.0,0.00055068,120]
[329998499,1718909445390,-5740.1,0.00055068,120]
[329998500,1718909445399,-500.0,0.00055068,120]
[329998501,1718909445409,-500.0,0.00055068,120]
[329998502,1718909445418,-992.31,0.00055068,120]
[329998503,1718909445429,-500.0,0.00055068,120]
[329998504,1718909445439,-500.0,0.00055068,120]
[329998505,1718909445448,-2537.4,0.00055068,120]
[329998506,1718909445457,-500.0,0.00055068,120]
[329998507,1718909445466,-500.0,0.00055068,120]
[329998508,1718909445476,-500.0,0.00055068,120]
[329998509,1718909445486,-1324.14413458,0.00055068,120]
[329998531,1718909447750,-11112.05682486,0.00019522,2]
[329998532,1718909447760,-928.65264186,0.00025089,2]
[329998533,1718909447770,-500.0,0.00054794,2]
[329998534,1718909447779,-3570.84586542,0.00055068,120]
[329998535,1718909447790,-500.0,0.00055068,120]
[329998537,1718909447802,-500.0,0.00055068,120]
[329998539,1718909447812,-500.0,0.00055068,120]
[329998540,1718909447822,-500.0,0.00055068,120]
[329998542,1718909447831,-1931.48,0.00055068,21]
[329998544,1718909447839,-500.0,0.00055068,120]
[329998546,1718909447849,-500.0,0.00055068,120]
[329998548,1718909447859,-500.0,0.00055068,120]
[329998550,1718909447869,-500.0,0.00055068,120]
[329998551,1718909447878,-305.36070266,0.00055068,120]
[329998553,1718909447888,-4144.08,0.00055068,120]
[329998556,1718909447909,-2746.47,0.00055068,60]
[329998558,1718909447921,-500.0,0.00055068,120]
[329998559,1718909447931,-900.05537152,0.00055068,120]
[329998560,1718909447940,-500.0,0.00055068,120]
[329998561,1718909447950,-500.0,0.00055068,120]
[329998562,1718909447959,-500.0,0.00055068,120]
[329998563,1718909447969,-500.0,0.00055068,2]
[329998564,1718909447979,-636.86,0.00055068,120]
[329998565,1718909447989,-500.0,0.00055068,120]
[329998566,1718909447999,-367.01276634,0.00055068,120]
[329998567,1718909448008,-500.0,0.00055068,120]
[329998568,1718909448019,-589.12,0.00055068,120]
[329998569,1718909448029,-500.0,0.00055068,120]
[329998570,1718909448041,-200.0,0.00055068,7]
[329998571,1718909448051,-500.0,0.00055068,120]
[329998572,1718909448061,-500.0,0.00055068,120]
[329998573,1718909448071,-500.0,0.00055068,120]
[329998574,1718909448081,-500.0,0.00055068,120]
[329998575,1718909448091,-500.0,0.00055068,120]
[329998576,1718909448101,-500.0,0.00055068,120]
[329998577,1718909448111,-500.0,0.00055068,120]
[329998578,1718909448121,-500.0,0.00055068,120]
[329998579,1718909448130,-500.0,0.00055068,120]
[329998580,1718909448140,-500.0,0.00055068,120]
[329998581,1718909448150,-500.0,0.00055068,120]
[329998582,1718909448160,-645.83,0.00055068,120]
[329998583,1718909448170,-500.0,0.00055068,120]
[329998584,1718909448180,-500.0,0.00055068,120]
[329998585,1718909448189,-500.0,0.00055068,120]
[329998586,1718909448199,-500.0,0.00055068,120]
[329998587,1718909448209,-500.0,0.00055068,120]
[329998588,1718909448218,-500.0,0.00055068,120]
[329998589,1718909448228,-1660.4,0.00055068,120]
[329998590,1718909448238,-500.0,0.00055068,120]
[329998591,1718909448247,-500.0,0.00055068,120]
[329998592,1718909448258,-500.0,0.00055068,120]
[329998593,1718909448267,-4426.99,0.00055068,120]
[329998594,1718909448277,-500.0,0.00055068,120]
[329998595,1718909448287,-500.0,0.00055068,120]
[329998596,1718909448296,-500.0,0.00055068,120]
[329998597,1718909448305,-500.0,0.00055068,120]
[329998598,1718909448315,-500.0,0.00055068,30]
[329998599,1718909448325,-500.0,0.00055068,2]
[329998600,1718909448335,-500.0,0.00055164,120]
[329998601,1718909448345,-500.0,0.00055164,120]
[329998602,1718909448356,-500.0,0.00055164,120]
[329998603,1718909448365,-500.0,0.00055164,120]
[329998604,1718909448375,-500.0,0.00055164,120]
[329998605,1718909448385,-500.0,0.00055164,120]
[329998606,1718909448394,-500.0,0.00055164,120]
[329998607,1718909448404,-500.0,0.00055164,120]
[329998608,1718909448415,-500.0,0.00055164,120]
[329998609,1718909448425,-500.0,0.00055164,120]
[329998610,1718909448435,-508.92,0.00055164,120]
[329998611,1718909448444,-158.0,0.0005517,62]
[329998612,1718909448454,-158.0,0.0005518,62]
[329998613,1718909448464,-158.0,0.0005519,62]
[329998614,1718909448473,-500.0,0.00055342,120]
[329998615,1718909448484,-636.28,0.00055342,120]
[329998616,1718909448494,-151.0,0.00055342,120]
[329998617,1718909448504,-151.0,0.00055342,120]
[329998618,1718909448513,-548.86048589,0.00055342,120]
[329998619,1718909448523,-500.0,0.00055342,120]
[329998620,1718909448533,-500.0,0.00055342,120]
[329998621,1718909448543,-500.0,0.00055342,120]
[329998622,1718909448553,-500.0,0.00055342,120]
[329998623,1718909448562,-521.5,0.00055342,120]
[329998624,1718909448571,-500.0,0.00055342,120]
[329998625,1718909448580,-500.0,0.00055342,120]
[329998626,1718909448590,-500.0,0.00055342,20]
[329998627,1718909448599,-500.0,0.00055342,120]
[329998628,1718909448608,-500.0,0.00055342,120]
[329998629,1718909448618,-500.0,0.00055342,2]
[329998630,1718909448627,-500.0,0.00055342,120]
[329998631,1718909448637,-500.0,0.00055342,120]
[329998632,1718909448646,-500.0,0.00055342,120]
[329998633,1718909448656,-500.0,0.00055342,120]
[329998634,1718909448665,-500.98958676,0.00055342,2]
[329998635,1718909448675,-544.72442179,0.00055342,120]
[329998636,1718909448686,-500.0,0.00055342,120]
[329998637,1718909448696,-430.54915003,0.00055342,120]
[329998638,1718909448705,-500.0,0.00055342,120]
[329998639,1718909448718,-199.52490855,0.00055342,120]
[329998640,1718909448727,-500.0,0.00055342,120]
[329998641,1718909448736,-500.0,0.00055342,120]
[329998642,1718909448748,-506.12723099,0.00055342,120]
[329998643,1718909448760,-500.0,0.00055342,120]
[329998644,1718909448771,-604.03,0.00055342,120]
[329998645,1718909448780,-1220.61,0.00055342,120]
[329998646,1718909448791,-500.0,0.00055342,120]
[329998647,1718909448803,-500.0,0.00055342,120]
[329998648,1718909448813,-500.0,0.00055342,120]
[329998649,1718909448823,-500.0,0.00055342,120]
[329998650,1718909448832,-500.0,0.00055342,120]
[329998651,1718909448842,-463.66807264,0.00055342,120]
[329998652,1718909448853,-1421.6,0.00055342,120]
[329998653,1718909448865,-500.0,0.00055342,120]
[329998654,1718909448875,-500.0,0.00055342,120]
[329998655,1718909448884,-1321.09,0.00055342,120]
[329998656,1718909448894,-500.0,0.00055342,120]
[329998657,1718909448904,-453.90398681,0.00055342,120]
[329998658,1718909448914,-659.32,0.00055342,120]
[329998659,1718909448925,-500.0,0.00055342,120]
[329998660,1718909448934,-500.0,0.00055342,120]
[329998661,1718909448944,-260.40153792,0.00055342,120]
[329998662,1718909448954,-788.39,0.00055342,120]
[329998663,1718909448964,-500.0,0.00055342,120]
[329998664,1718909448975,-867.7,0.00055342,120]
[329998665,1718909448985,-500.0,0.00055342,120]
[329998666,1718909448995,-214.94335921,0.00055342,120]
[329998667,1718909449005,-500.0,0.00055342,120]
[329998668,1718909449015,-500.0,0.00055342,120]
[329998669,1718909449025,-500.0,0.00055342,120]
[329998670,1718909449034,-504.78944374,0.00055342,120]
[329998671,1718909449047,-500.0,0.00055342,120]
[329998672,1718909449057,-500.0,0.00055342,120]
[329998673,1718909449067,-1403.27,0.00055342,120]
[329998674,1718909449077,-524.94,0.00055342,120]
[329998675,1718909449087,-500.0,0.00055342,120]
[329998676,1718909449097,-500.0,0.00055342,120]
[329998677,1718909449107,-3180.57,0.00055342,120]
[329998678,1718909449116,-606.05600692,0.00055342,120]
[329998679,1718909449125,-500.0,0.00055342,120]
[329998680,1718909449135,-500.0,0.00055342,120]
[329998681,1718909449145,-500.0,0.00055342,120]
[329998682,1718909449155,-500.0,0.00055342,120]
[329998683,1718909449165,-500.0,0.00055342,120]
[329998684,1718909449175,-6313.73,0.00055342,120]
[329998685,1718909449184,-500.0,0.00055342,120]
[329998686,1718909449194,-500.0,0.00055342,120]
[329998687,1718909449203,-500.0,0.00055342,120]
[329998688,1718909449213,-5740.1,0.00055342,120]
[329998689,1718909449223,-500.0,0.00055342,120]
[329998690,1718909449232,-500.0,0.00055342,120]
[329998691,1718909449241,-992.31,0.00055342,120]
[329998692,1718909449251,-500.0,0.00055342,120]
[329998693,1718909449262,-500.0,0.00055342,120]
[329998694,1718909449272,-2537.4,0.00055342,120]
[329998695,1718909449281,-500.0,0.00055342,120]
[329998696,1718909449294,-500.0,0.00055342,120]
[329998697,1718909449304,-500.0,0.00055342,120]
[329998698,1718909449314,-500.0,0.00055342,120]
[329998699,1718909449324,-473.32055559,0.00055342,120]
[329998700,1718909449334,-1931.48,0.00055342,21]
[329998701,1718909449343,-500.0,0.00055342,120]
[329998702,1718909449353,-500.0,0.00055342,120]
[329998703,1718909449362,-4144.08,0.00055342,120]
[329998704,1718909449372,-2746.47,0.00055342,60]
[329998705,1718909449382,-500.0,0.00055342,120]
[329998706,1718909449391,-500.0,0.00055342,120]
[329998707,1718909449400,-500.0,0.00055342,120]
[329998708,1718909449410,-500.0,0.00055342,2]
[329998709,1718909449419,-561.85305015,0.00055342,120]
[329998710,1718909449429,-500.0,0.00055342,120]
[329998711,1718909449439,-500.0,0.00055342,120]
[329998712,1718909449448,-589.12,0.00055342,120]
[329998713,1718909449457,-460.43522616,0.00055342,120]
[329998714,1718909449467,-200.0,0.00055342,7]
[329998715,1718909449477,-500.0,0.00055342,120]
[329998716,1718909449486,-500.0,0.00055342,120]
[329998717,1718909449496,-500.0,0.00055342,120]
[329998718,1718909449508,-500.0,0.00055342,120]
[329998719,1718909449518,-593.0882911,0.00055342,120]
[329998720,1718909449527,-500.0,0.00055342,120]
[329998721,1718909449537,-500.0,0.00055342,120]
[329998722,1718909449548,-645.83,0.00055342,120]
[329998723,1718909449557,-500.0,0.00055342,120]
[329998724,1718909449567,-179.50099273,0.00055342,120]
[329998725,1718909449576,-500.0,0.00055342,120]
[329998726,1718909449585,-500.0,0.00055342,120]
[329998727,1718909449595,-500.0,0.00055342,120]
[329998728,1718909449605,-1660.4,0.00055342,120]
[329998729,1718909449614,-500.0,0.00055342,120]
[329998730,1718909449624,-4426.99,0.00055342,120]
[329998731,1718909449633,-500.0,0.00055342,120]
[329998732,1718909449642,-216.426341,0.00055342,120]
[329998733,1718909449652,-500.0,0.00055342,120]
[329998734,1718909449661,-500.0,0.00055342,120]
[329998735,1718909449671,-500.0,0.00055342,30]
[329998736,1718909449680,-500.0,0.00055342,2]
[329998737,1718909449690,-12008.43513919,0.000555,120]
[329998738,1718909449699,-636.28,0.00055616,120]
[329998739,1718909449709,-151.0,0.00055616,120]
[329998740,1718909449721,-279.628157,0.00055616,120]
[329998741,1718909449731,-500.0,0.00055616,120]
[329998742,1718909449740,-500.0,0.00055616,120]
[329998743,1718909449750,-500.0,0.00055616,120]
[329998744,1718909449759,-500.0,0.00055616,120]
[329998745,1718909449769,-509.92066357,0.00055616,120]
[329998746,1718909449779,-500.0,0.00055616,2]
[329998747,1718909449789,-500.0,0.00055616,120]
[329998748,1718909449800,-500.0,0.00055616,120]
[329998749,1718909449811,-500.0,0.00055616,120]
[329998750,1718909449821,-500.0,0.00055616,120]
[329998751,1718909449830,-500.0,0.00055616,120]
[329998752,1718909449927,-500.0,0.00055616,120]
[329998753,1718909449948,-500.0,0.00055616,120]
[329998754,1718909449958,-604.03,0.00055616,120]
[329998755,1718909449968,-1220.61,0.00055616,120]
[329998756,1718909449977,-500.0,0.00055616,120]
[329998757,1718909449987,-500.0,0.00055616,120]
[329998758,1718909449996,-500.0,0.00055616,120]
[329998759,1718909450006,-1421.6,0.00055616,120]
[329998760,1718909450016,-500.0,0.00055616,120]
[329998761,1718909450026,-351.29835581,0.00055616,120]
[329998762,1718909450035,-1321.09,0.00055616,120]
[329998763,1718909450046,-659.32,0.00055616,120]
[329998764,1718909450055,-500.0,0.00055616,120]
[329998765,1718909450064,-363.34071676,0.00055616,120]
[329998766,1718909450074,-788.39,0.00055616,120]
[329998767,1718909450084,-867.7,0.00055616,120]
[329998768,1718909450093,-500.0,0.00055616,120]
[329998769,1718909450103,-500.0,0.00055616,120]
[329998770,1718909450112,-492.6164352,0.00055616,120]
[329998771,1718909450122,-500.0,0.00055616,120]
[329998772,1718909450131,-500.0,0.00055616,120]
[329998773,1718909450140,-500.0,0.00055616,120]
[329998774,1718909450149,-1403.27,0.00055616,120]
[329998775,1718909450159,-524.94,0.00055616,120]
[329998776,1718909450168,-500.0,0.00055616,120]
[329998777,1718909450178,-3180.57,0.00055616,120]
[329998778,1718909450187,-500.0,0.00055616,120]
[329998779,1718909450196,-500.0,0.00055616,120]
[329998780,1718909450206,-6313.73,0.00055616,120]
[329998781,1718909450215,-506.30707113,0.00055616,120]
[329998782,1718909450225,-500.0,0.00055616,120]
[329998783,1718909450234,-500.0,0.00055616,120]
[329998784,1718909450244,-5740.1,0.00055616,120]
[329998785,1718909450253,-500.0,0.00055616,120]
[329998786,1718909450262,-500.0,0.00055616,120]
[329998787,1718909450272,-992.31,0.00055616,120]
[329998788,1718909450282,-500.0,0.00055616,120]
[329998789,1718909450293,-500.0,0.00055616,120]
[329998790,1718909450304,-2537.4,0.00055616,120]
[329998791,1718909450313,-500.0,0.00055616,120]
[329998792,1718909450324,-500.0,0.00055616,120]
[329998793,1718909450333,-500.0,0.00055616,120]
[329998794,1718909450343,-500.0,0.00055616,120]
[329998795,1718909450352,-1931.48,0.00055616,21]
[329998796,1718909450362,-500.0,0.00055616,120]
[329998797,1718909450372,-4144.08,0.00055616,120]
[329998798,1718909450382,-500.0,0.00055616,120]
[329998799,1718909450392,-500.0,0.00055616,120]
[329998800,1718909450402,-500.0,0.00055616,120]
[329998801,1718909450411,-500.0,0.00055616,120]
[329998802,1718909450420,-589.12,0.00055616,120]
[329998803,1718909450430,-200.0,0.00055616,7]
[329998804,1718909450440,-500.0,0.00055616,120]
[329998805,1718909450450,-500.0,0.00055616,120]
[329998806,1718909450460,-500.0,0.00055616,120]
[329998807,1718909450469,-500.0,0.00055616,120]
[329998808,1718909450478,-645.83,0.00055616,120]
[329998809,1718909450488,-500.0,0.00055616,120]
[329998810,1718909450498,-500.0,0.00055616,120]
[329998811,1718909450507,-500.0,0.00055616,120]
[329998812,1718909450516,-500.0,0.00055616,120]
[329998813,1718909450526,-1660.4,0.00055616,120]
[329998814,1718909450536,-500.0,0.00055616,120]
[329998815,1718909450548,-4426.99,0.00055616,120]
[329998816,1718909450557,-500.0,0.00055616,120]
[329998817,1718909450566,-513.08969782,0.00055616,120]
[329998818,1718909450575,-500.0,0.00055616,2]
[329998819,1718909450585,-156.6649408,0.00055616,60]
[329998820,1718909450596,-153.0,0.00055616,60]
[329998821,1718909450605,-153.0,0.00055616,60]
[329998822,1718909450615,-636.28,0.0005589,120]
[329998823,1718909450625,-151.0,0.0005589,120]
[329998824,1718909450634,-500.0,0.0005589,120]
[329998825,1718909450644,-500.0,0.0005589,120]
[329998826,1718909450653,-500.0,0.0005589,120]
[329998827,1718909450663,-519.31631342,0.0005589,120]
[329998828,1718909450672,-500.0,0.0005589,2]
[329998829,1718909450682,-500.0,0.0005589,120]
[329998830,1718909450691,-500.0,0.0005589,120]
[329998831,1718909450701,-500.0,0.0005589,120]
[329998832,1718909450711,-500.0,0.0005589,120]
[329998833,1718909450726,-500.0,0.0005589,120]
[329998834,1718909450735,-532.11445497,0.0005589,120]
[329998835,1718909450744,-151.0,0.0005589,120]
[329998836,1718909450755,-161.416194,0.0005589,120]
[329998837,1718909450766,-500.0,0.0005589,120]
[329998838,1718909450775,-223.268007,0.0005589,120]
[329998839,1718909450785,-223.268007,0.0005589,120]
[329998840,1718909450796,-151.0,0.0005589,120]
[329998841,1718909450806,-604.03,0.0005589,120]
[329998842,1718909450815,-1220.61,0.0005589,120]
[329998843,1718909450825,-500.0,0.0005589,120]
[329998844,1718909450834,-151.0,0.0005589,120]
[329998845,1718909450844,-151.0,0.0005589,120]
[329998846,1718909450853,-1421.6,0.0005589,120]
[329998847,1718909450862,-500.0,0.0005589,120]
[329998848,1718909450872,-265.024962,0.0005589,120]
[329998849,1718909450882,-151.0,0.0005589,120]
[329998850,1718909450892,-1321.09,0.0005589,120]
[329998851,1718909450901,-151.0,0.0005589,120]
[329998852,1718909450911,-151.0,0.0005589,120]
[329998853,1718909450920,-659.32,0.0005589,120]
[329998854,1718909450930,-151.0,0.0005589,120]
[329998855,1718909450939,-500.0,0.0005589,120]
[329998856,1718909450948,-867.7,0.0005589,120]
[329998857,1718909450957,-500.0,0.0005589,120]
[329998858,1718909450967,-151.0,0.0005589,120]
[329998859,1718909450976,-512.27467619,0.0005589,120]
[329998860,1718909450985,-500.0,0.0005589,120]
[329998861,1718909450995,-500.0,0.0005589,120]
[329998862,1718909451004,-500.0,0.0005589,120]
[329998863,1718909451013,-1403.27,0.0005589,120]
[329998864,1718909451023,-524.94,0.0005589,120]
[329998865,1718909451033,-500.0,0.0005589,120]
[329998866,1718909451044,-500.0,0.0005589,120]
[329998867,1718909451053,-500.0,0.0005589,120]
[329998868,1718909451063,-500.0,0.0005589,120]
[329998869,1718909451073,-500.0,0.0005589,120]
[329998870,1718909451082,-5740.1,0.0005589,120]
[329998871,1718909451091,-500.0,0.0005589,120]
[329998872,1718909451101,-500.0,0.0005589,120]
[329998873,1718909451111,-992.31,0.0005589,120]
[329998874,1718909451120,-483.35204068,0.0005589,120]
[329998875,1718909451129,-2537.4,0.0005589,120]
[329998876,1718909451138,-500.0,0.0005589,120]
[329998877,1718909451147,-500.0,0.0005589,120]
[329998878,1718909451157,-524.40122633,0.0005589,120]
[329998879,1718909451166,-500.0,0.0005589,120]
[329998880,1718909451175,-500.0,0.0005589,120]
[329998881,1718909451184,-1931.48,0.0005589,21]
[329998882,1718909451193,-500.0,0.0005589,120]
[329998883,1718909451202,-4144.08,0.0005589,120]
[329998884,1718909451211,-500.0,0.0005589,120]
[329998885,1718909451221,-500.0,0.0005589,120]
[329998886,1718909451230,-500.0,0.0005589,120]
[329998887,1718909451240,-500.0,0.0005589,120]
[329998888,1718909451249,-589.12,0.0005589,120]
[329998889,1718909451258,-200.0,0.0005589,7]
[329998890,1718909451267,-500.0,0.0005589,120]
[329998891,1718909451276,-500.0,0.0005589,120]
[329998892,1718909451285,-645.83,0.0005589,120]
[329998893,1718909451294,-500.0,0.0005589,120]
[329998894,1718909451303,-500.0,0.0005589,120]
[329998895,1718909451312,-500.0,0.0005589,120]
[329998896,1718909451322,-500.0,0.0005589,120]
[329998897,1718909451331,-1660.4,0.0005589,120]
[329998898,1718909451340,-500.0,0.0005589,120]
[329998899,1718909451349,-4426.99,0.0005589,120]
[329998900,1718909451358,-500.0,0.0005589,120]
[329998901,1718909451367,-500.0,0.0005589,2]
[329998902,1718909451376,-359.71963959,0.00056,120]
[329998903,1718909451386,-625.393,0.00056038,120]
[329998904,1718909451395,-164.829,0.00056038,120]
[329998905,1718909451405,-1758.0,0.00056038,2]
[329998906,1718909451414,-1338.87691,0.00056038,120]
[329998907,1718909451423,-1338.87691,0.00056038,120]
[329998908,1718909451432,-252.0,0.000561,35]
[329998909,1718909451441,-158.66,0.000561,52]
[329998910,1718909451451,-500.0,0.00056164,120]
[329998911,1718909451460,-636.28,0.00056164,120]
[329998912,1718909451470,-151.0,0.00056164,120]
[329998913,1718909451479,-500.0,0.00056164,120]
[329998914,1718909451488,-500.0,0.00056164,120]
[329998915,1718909451497,-500.0,0.00056164,120]
[329998916,1718909451507,-500.0,0.00056164,2]
[329998917,1718909451516,-500.0,0.00056164,120]
[329998918,1718909451526,-500.0,0.00056164,120]